bitfinex/quotes_SOLUSD_20251216
["timestamp","ask_amount","ask_price","bid_price","bid_amount"]
[1765887358185,16.99061154,128.69,128.68,0.2]
[1765887358389,19.77617579,128.69,128.68,0.2]
[1765887361673,16.29061154,128.69,128.68,0.88]
[1765887361872,8.52,128.69,128.68,0.88]
[1765887362261,16.29061154,128.69,128.68,0.88]
[1765887362585,16.29061154,128.69,128.68,9.68994492]
[1765887363281,8.52,128.69,128.68,9.68994492]
[1765887363586,8.52,128.69,128.68,12.47550917]
[1765887364289,13.0470912,128.73,128.71,0.72]
[1765887364290,19.42119263,128.73,128.71,0.72]
[1765887364580,19.07436474,128.72,128.7,9.52994492]
[1765887364985,19.07436474,128.72,128.69,0.72]
[1765887365191,19.07436474,128.72,128.7,9.52994492]
[1765887365501,38.49636598,128.72,128.7,9.52994492]
[1765887366779,16.28880049,128.72,128.68,2.98556425]
[1765887366965,16.28880049,128.72,128.7,0.72]
[1765887367772,8.52,128.72,128.71,0.72]
[1765887368498,8.52,128.72,128.71,12.31550917]
[1765887368992,8.52,128.72,128.71,9.52994492]
[1765887370472,8.52,128.72,128.71,12.31550917]
[1765887370992,7.76721538,128.75,128.71,19.36483219]
[1765887371196,7.76721538,128.75,128.74,9.52994492]
[1765887371393,16.28721538,128.75,128.74,9.52994492]
[1765887376183,16.28721538,128.75,128.74,0.72]
[1765887377122,8.52,128.75,128.74,0.72]
[1765887377285,8.52,128.75,128.74,20.08310276]
[1765887377480,8.52,128.77,128.75,8.80994492]
[1765887377787,7.76566108,128.78,128.75,11.59550917]
[1765887377992,8.52,128.77,128.76,9.52994492]
[1765887380709,8.52,128.77,128.76,12.31550917]
[1765887381012,8.52,128.77,128.76,9.52994492]
[1765887382515,8.52,128.77,128.76,71.42994492]
[1765887385296,16.28466139,128.79,128.78,0.72]
[1765887386719,16.96466139,128.79,128.77,8.80994492]
[1765887386922,16.28466139,128.79,128.77,9.52994492]
[1765887387705,16.28466139,128.79,128.78,0.72]
[1765887395921,8.52,128.79,128.78,0.72]
[1765887396541,19.40463807,128.84,128.78,2.78556425]
[1765887396716,8.52,128.83,128.8,8.80994492]
[1765887396919,16.28216719,128.83,128.82,8.80994492]
[1765887398910,8.52,128.83,128.81,0.68]
[1765887399318,8.52,128.83,128.82,20.03827892]
[1765887399737,8.52,128.83,128.82,9.48994492]
[1765887400119,16.28216719,128.83,128.81,0.68]
[1765887400314,16.28216719,128.83,128.8,9.48994492]
[1765887400542,16.28216719,128.83,128.82,8.80994492]
[1765887400744,16.28216719,128.83,128.82,9.48994492]
[1765887402224,8.52,128.83,128.82,9.48994492]
[1765887403544,8.52,128.83,128.82,12.27039486]
[1765887405949,8.52,128.83,128.82,9.48994492]
[1765887411926,8.52,128.83,128.82,13.83341123]
[1765887413552,8.52,128.83,128.82,9.48994492]
[1765887413934,16.28216719,128.83,128.82,8.80994492]
[1765887414256,16.93216719,128.83,128.82,8.80994492]
[1765887414450,21.2756335,128.83,128.82,8.80994492]
[1765887415147,20.6256335,128.83,128.8,8.80994492]
[1765887415354,20.6256335,128.83,128.8,9.48994492]
[1765887415534,16.28216719,128.83,128.82,8.80994492]
[1765887416556,16.28216719,128.83,128.82,9.48994492]
[1765887416734,7.76166284,128.84,128.82,9.48994492]
[1765887416937,7.76166284,128.84,128.8,4.34346631]
[1765887416938,0.1,128.87,128.85,0.68]
[1765887417150,8.6,128.87,128.86,9.48994492]
[1765887417561,8.6,128.87,128.86,8.80994492]
[1765887417945,8.6,128.87,128.86,9.48994492]
[1765887418466,8.6,128.87,128.86,13.83341123]
[1765887418973,8.6,128.87,128.86,9.48994492]
[1765887420586,0.1,128.87,128.86,9.48994492]
[1765887421067,4.44346631,128.87,128.84,8.80994492]
[1765887421283,4.99346631,128.85,128.84,8.80994492]
[1765887421472,0.65,128.84,128.8,0.68]
[1765887421669,8.5,128.83,128.8,0.68]
[1765887421976,13.49346631,128.83,128.8,0.68]
[1765887422155,13.49346631,128.83,128.81,8.80994492]
[1765887423072,21.25605865,128.83,128.81,8.80994492]
[1765887423567,5.02346631,128.82,128.79,8.80994492]
[1765887423773,5.02346631,128.82,128.79,9.47994492]
[1765887424979,20.60605865,128.83,128.79,8.80994492]
[1765887425160,21.28605865,128.83,128.81,8.80994492]
[1765887426582,0.68,128.82,128.79,9.47994492]
[1765887427065,0.68,128.82,128.79,71.37994492]
[1765887428484,8.5,128.81,128.79,71.37994492]
[1765887428806,8.5,128.81,128.8,9.47994492]
[1765887431276,8.5,128.81,128.8,8.80994492]
[1765887434214,8.5,128.81,128.8,9.47994492]
[1765887436606,8.5,128.81,128.8,8.80994492]
[1765887436834,8.5,128.81,128.8,9.47994492]
[1765887437330,8.5,128.81,128.8,21.58738638]
[1765887438108,7.76178738,128.84,128.81,8.80994492]
[1765887438307,8.5,128.83,128.81,9.47994492]
[1765887439115,8.5,128.83,128.81,13.82341123]
[1765887440022,8.5,128.83,128.81,9.47994492]
[1765887441131,0.68,128.82,128.81,8.80994492]
[1765887444019,8.44276975,128.82,128.81,8.80994492]
[1765887444841,8.44276975,128.82,128.8,8.80994492]
[1765887446042,0.68,128.82,128.8,8.80994492]
[1765887446225,0.68,128.82,128.8,9.47994492]
[1765887446425,16.26237509,128.83,128.81,0.67]
[1765887446620,16.94237509,128.83,128.81,0.67]
[1765887446825,16.26237509,128.83,128.81,0.67]
[1765887447021,8.5,128.83,128.81,0.67]
[1765887447224,8.5,128.83,128.82,9.47994492]
[1765887448348,8.5,128.83,128.82,13.82341123]
[1765887449547,16.26131056,128.85,128.83,8.80994492]
[1765887449845,16.26131056,128.85,128.83,9.47994492]
[1765887450348,8.5,128.85,128.83,9.47994492]
[1765887451260,8.5,128.85,128.84,9.47994492]
[1765887451447,8.5,128.85,128.84,13.82341123]
[1765887452826,8.5,128.85,128.84,21.58497596]
[1765887453224,8.6,128.87,128.85,9.47994492]
[1765887453438,17.01975804,128.87,128.85,8.80994492]
[1765887457635,20.70322435,128.87,128.85,8.80994492]
[1765887457846,0.67,128.86,128.85,8.80994492]
[1765887458038,5.01346631,128.86,128.85,8.80994492]
[1765887460256,12.77382639,128.86,128.85,8.80994492]
[1765887462655,12.10382639,128.86,128.82,8.80994492]
[1765887462853,9.17,128.85,128.82,71.35994492]
[1765887463168,8.5,128.85,128.83,4.99346631]
[1765887463355,9.17,128.85,128.84,8.80994492]
[1765887463556,0.67,128.84,128.83,8.80994492]
[1765887463949,9.17,128.85,128.83,8.80994492]
[1765887464149,12.84346631,128.85,128.82,0.65]
[1765887464462,0.67,128.84,128.82,8.80994492]
[1765887464760,16.26216719,128.83,128.82,8.80994492]
[1765887464971,16.26216719,128.83,128.81,9.45994492]
[1765887465344,0.67,128.82,128.79,0.65]
[1765887465544,8.5,128.81,128.8,8.80994492]
[1765887465850,8.5,128.81,128.8,0.65]
[1765887470385,16.26339929,128.81,128.79,9.45994492]
[1765887470551,16.26339929,128.81,128.79,8.80994492]
[1765887470744,16.26339929,128.81,128.8,0.65]
[1765887471057,8.5,128.81,128.8,0.65]
[1765887471250,8.5,128.81,128.79,8.80994492]
[1765887471454,16.93340922,128.81,128.79,9.45994492]
[1765887471655,16.26340922,128.81,128.79,9.45994492]
[1765887472166,19.71448733,128.81,128.79,8.80994492]
[1765887472646,8.5,128.81,128.79,0.65]
[1765887472846,16.26355793,128.81,128.78,9.45994492]
[1765887473046,19.04463604,128.81,128.79,0.65]
[1765887473248,16.93355793,128.81,128.79,0.65]
[1765887473878,16.26355793,128.81,128.79,0.65]
[1765887475270,19.71463604,128.81,128.78,71.35994492]
[1765887479972,0.67,128.8,128.78,9.45994492]
[1765887480150,8.5,128.79,128.78,9.45994492]
[1765887481475,0.67,128.78,128.77,8.80994492]
[1765887481697,2.78107811,128.78,128.74,8.80994492]
[1765887481870,3.45107811,128.76,128.74,8.80994492]
[1765887482070,11.30107811,128.75,128.74,8.80994492]
[1765887482268,11.97107811,128.75,128.72,9.45994492]
[1765887482665,2.78107811,128.74,128.72,9.45994492]
[1765887486874,0.66,128.73,128.72,8.80994492]
[1765887487380,11.20873735,128.74,128.72,8.80994492]
[1765887487685,3.44107811,128.74,128.72,8.80994492]
[1765887488206,3.44107811,128.73,128.71,9.50994492]
[1765887488390,8.52,128.72,128.71,9.50994492]
[1765887488761,8.52,128.72,128.7,9.50994492]
[1765887490088,19.72989304,128.72,128.7,8.80994492]
[1765887490392,16.28881493,128.72,128.7,9.50994492]
[1765887490693,16.94881493,128.72,128.7,9.50994492]
[1765887490892,16.28881493,128.72,128.7,9.50994492]
[1765887491587,16.28881493,128.72,128.71,0.7]
[1765887492189,16.28881493,128.72,128.7,8.80994492]
[1765887492384,16.28881493,128.72,128.7,9.50994492]
[1765887493574,16.28881493,128.72,128.7,8.80994492]
[1765887493776,16.28881493,128.72,128.71,0.7]
[1765887494687,16.94881493,128.72,128.7,8.80994492]
[1765887495007,16.94881493,128.72,128.69,8.80994492]
[1765887495008,2.78107811,128.71,128.69,8.80994492]
[1765887495169,9.18,128.7,128.69,8.80994492]
[1765887495370,11.96107811,128.7,128.69,8.80994492]
[1765887496178,19.73108588,128.7,128.69,8.80994492]
[1765887496678,16.95000777,128.7,128.69,8.80994492]
[1765887498196,16.29000777,128.7,128.69,8.80994492]
[1765887502000,16.29000777,128.7,128.68,9.70994492]
[1765887502200,3.44107811,128.69,128.68,9.00994492]
[1765887502405,0.66,128.69,128.68,9.00994492]
[1765887502607,3.44107811,128.69,128.68,9.00994492]
[1765887502828,3.44107811,128.69,128.68,0.2]
[1765887502977,0.66,128.69,128.68,0.2]
[1765887503178,3.44107811,128.69,128.68,0.2]
[1765887503503,24.25878085,128.69,128.68,0.2]
[1765887506702,32.77878085,128.69,128.68,0.2]
[1765887511116,0.66,128.68,128.67,9.00994492]
[1765887511314,13.0470912,128.66,128.65,0.2]
[1765887511630,25.00816931,128.66,128.65,0.2]
[1765887512000,25.00816931,128.66,128.64,0.2]
[1765887512001,0.66,128.65,128.64,0.2]
[1765887512242,3.44107811,128.65,128.64,0.2]
[1765887512740,19.26924742,128.64,128.63,0.2]
[1765887512908,35.56287926,128.64,128.63,0.2]
[1765887514226,32.78180115,128.64,128.63,0.2]
[1765887514628,30.00072304,128.64,128.63,0.2]
[1765887515507,32.78180115,128.64,128.63,0.2]
[1765887516120,32.78180115,128.64,128.63,9.00994492]
[1765887516321,29.34072304,128.64,128.63,9.00994492]
[1765887516508,32.12180115,128.64,128.63,9.00994492]
[1765887517008,32.83180115,128.64,128.63,9.00994492]
[1765887517410,32.83180115,128.64,128.63,0.2]
[1765887517624,35.61287926,128.64,128.63,0.2]
[1765887518205,0.71,128.63,128.59,0.2]
[1765887518411,2.78107811,128.6,128.59,0.2]
[1765887518613,11.30107811,128.6,128.59,0.87]
[1765887518816,8.52,128.6,128.59,0.87]
[1765887519038,16.29604976,128.6,128.59,0.87]
[1765887522650,8.52,128.6,128.59,9.67994492]
[1765887522946,7.77564001,128.61,128.6,0.67]
[1765887523138,16.29564001,128.61,128.6,0.67]
[1765887525328,16.29564001,128.61,128.59,9.67994492]
[1765887527468,19.07671812,128.61,128.59,9.67994492]
[1765887528924,16.29564001,128.61,128.6,0.67]
[1765887529129,7.77505582,128.62,128.61,0.67]
[1765887529336,16.29505582,128.62,128.61,0.67]
[1765887529846,7.77505582,128.62,128.61,0.67]
[1765887530227,16.29505582,128.62,128.61,0.67]
[1765887530746,8.52,128.62,128.61,9.47994492]
[1765887531344,8.52,128.62,128.61,21.61484195]
[1765887531846,8.52,128.64,128.63,9.47994492]
[1765887532071,8.52,128.64,128.63,13.83939681]
[1765887532419,8.52,128.64,128.63,9.47994492]
[1765887533544,8.52,128.66,128.65,9.47994492]
[1765887534253,16.29242344,128.66,128.65,9.47994492]
[1765887534453,8.52,128.66,128.65,9.47994492]
[1765887534920,16.29242344,128.66,128.65,9.47994492]
[1765887535855,16.29242344,128.66,128.65,8.80994492]
[1765887536032,20.65187533,128.66,128.65,9.47994492]
[1765887536236,20.65187533,128.66,128.65,8.80994492]
[1765887536921,16.29242344,128.66,128.65,9.47994492]
[1765887537131,20.65187533,128.66,128.65,9.47994492]
[1765887537350,32.47262454,128.7,128.66,8.80994492]
[1765887537646,4.35945189,128.69,128.67,0.67]
[1765887538354,12.13006343,128.69,128.67,0.67]
[1765887539226,12.84006343,128.69,128.66,9.47994492]
[1765887539835,8.52,128.68,128.66,9.47994492]
[1765887540028,20.65066916,128.68,128.66,9.47994492]
[1765887540554,16.29121727,128.68,128.66,9.47994492]
[1765887540726,20.64713412,128.68,128.66,9.47994492]
[1765887541740,4.35591685,128.67,128.66,8.80994492]
[1765887541925,4.35591685,128.67,128.65,9.47994492]
[1765887542840,12.12786221,128.67,128.65,9.47994492]
[1765887545266,8.52,128.68,128.66,4.35591685]
[1765887545571,0.72,128.72,128.68,0.65]
[1765887545572,8.52,128.72,128.68,0.65]
[1765887545776,12.87591685,128.72,128.68,0.65]
[1765887547267,20.6453017,128.72,128.67,12.12743961]
[1765887547474,16.28938485,128.72,128.69,0.65]
[1765887548176,16.28938485,128.72,128.71,8.80994492]
[1765887548578,8.52,128.72,128.7,13.16586177]
[1765887548790,8.52,128.74,128.73,9.45994492]
[1765887548993,8.52,128.74,128.73,8.80994492]
[1765887549153,13.59591685,128.74,128.72,8.80994492]
[1765887549351,7.768197,128.73,128.72,8.80994492]
[1765887550378,20.64354081,128.74,128.71,8.80994492]
[1765887550569,20.64354081,128.74,128.72,0.65]
[1765887551161,20.64354081,128.74,128.71,0.65]
[1765887551492,4.35591685,128.73,128.7,8.80994492]
[1765887551787,8.52,128.72,128.71,0.65]
[1765887552655,8.52,128.72,128.71,9.45994492]
[1765887559601,16.28775442,128.74,128.72,9.45994492]
[1765887560296,17.00775442,128.74,128.71,9.45994492]
[1765887560478,8.52,128.74,128.73,9.45994492]
[1765887561478,20.81394506,128.76,128.74,9.45994492]
[1765887561679,29.33394506,128.76,128.74,9.45994492]
[1765887563097,8.52,128.76,128.75,0.65]
[1765887563299,8.52,128.76,128.75,9.45994492]
[1765887563506,8.52,128.78,128.76,9.45994492]
[1765887565395,8.52,128.78,128.76,8.80994492]
[1765887565584,8.52,128.78,128.77,9.45994492]
[1765887566106,16.28518092,128.78,128.77,8.80994492]
[1765887566786,8.52,128.78,128.77,8.80994492]
[1765887567886,8.52,128.78,128.77,9.45994492]
[1765887569404,17.00518092,128.78,128.77,8.80994492]
[1765887569707,16.28518092,128.78,128.77,8.80994492]
[1765887572196,8.52,128.78,128.77,9.45994492]
[1765887572396,8.52,128.78,128.77,8.80994492]
[1765887573213,8.52,128.78,128.77,9.45994492]
[1765887574117,8.52,128.78,128.77,17.22572887]
[1765887574449,0.1,128.79,128.78,9.52994492]
[1765887578827,0.1,128.79,128.78,17.29512584]
[1765887580814,0.1,128.79,128.78,9.52994492]
[1765887584558,0.1,128.79,128.78,71.42994492]
[1765887586733,0.1,128.79,128.78,70.70994492]
[1765887586932,0.1,128.79,128.78,71.42994492]
[1765887588744,0.81,128.79,128.78,70.70994492]
[1765887589462,5.16591685,128.79,128.78,70.70994492]
[1765887589671,0.81,128.79,128.78,70.70994492]
[1765887590171,0.1,128.79,128.78,71.42994492]
[1765887590365,0.1,128.79,128.78,9.52994492]
[1765887592161,0.1,128.79,128.78,8.80994492]
[1765887592367,0.1,128.79,128.78,9.52994492]
[1765887593172,3.59206412,128.79,128.78,8.80994492]
[1765887593476,0.71,128.78,128.75,8.80994492]
[1765887593648,12.01206412,128.77,128.75,8.80994492]
[1765887594141,19.77786555,128.77,128.75,8.80994492]
[1765887594542,9.23,128.77,128.75,8.80994492]
[1765887594746,8.52,128.77,128.75,9.52994492]
[1765887594945,19.77793024,128.77,128.75,8.80994492]
[1765887595171,3.49206412,128.76,128.74,0.72]
[1765887595376,19.46793024,128.77,128.75,8.80994492]
[1765887598499,0.1,128.79,128.75,8.80994492]
[1765887598703,0.1,128.85,128.82,13.0470912]
[1765887598981,0.1,128.85,128.84,12.31200904]
[1765887600473,0.1,128.85,128.84,17.29150965]
[1765887600859,0.1,128.85,128.84,20.07357377]
[1765887601775,8.62,128.9,128.88,8.80994492]
[1765887601994,0.71,128.89,128.88,8.80994492]
[1765887602193,0.71,128.89,128.86,0.72]
[1765887602562,0.71,128.89,128.86,3.50206412]
[1765887603165,8.52,128.88,128.86,3.50206412]
[1765887603697,0.71,128.89,128.86,3.50206412]
[1765887604007,0.71,128.89,128.87,8.80994492]
[1765887605180,8.5,128.88,128.87,8.80994492]
[1765887606801,8.5,128.88,128.87,12.28200904]
[1765887606981,0.78,128.9,128.87,12.28200904]
[1765887607178,8.5,128.89,128.88,3.47206412]
[1765887607383,8.6,128.9,128.88,3.47206412]
[1765887608476,8.6,128.9,128.89,2.78206412]
[1765887609171,8.6,128.9,128.89,8.80994492]
[1765887609372,8.6,128.9,128.89,9.49994492]
[1765887610078,8.6,128.9,128.89,12.27678002]
[1765887610398,0.1,128.9,128.89,20.03533382]
[1765887615082,3.5568351,128.9,128.88,8.80994492]
[1765887615305,3.4568351,128.89,128.88,8.80994492]
[1765887615476,2.8768351,128.9,128.86,17.26028532]
[1765887615677,3.5568351,128.9,128.86,8.4503404]
[1765887615879,0.68,128.89,128.86,8.4503404]
[1765887616112,0.68,128.89,128.86,17.26028532]
[1765887616316,9.18,128.89,128.87,8.80994492]
[1765887616522,8.5,128.89,128.87,9.49994492]
[1765887616688,8.53815337,128.9,128.87,8.80994492]
[1765887616883,11.31498847,128.9,128.87,8.80994492]
[1765887617089,8.5,128.89,128.87,8.80994492]
[1765887617417,11.2768351,128.89,128.87,8.80994492]
[1765887617645,0.68,128.88,128.87,8.80994492]
[1765887617786,0.68,128.87,128.86,8.80994492]
[1765887617987,3.4568351,128.87,128.86,8.80994492]
[1765887618287,0.68,128.86,128.83,8.80994492]
[1765887618490,11.9568351,128.85,128.83,8.80994492]
[1765887618888,11.9568351,128.85,128.82,0.69]
[1765887618889,0.68,128.83,128.82,8.80994492]
[1765887619206,2.7768351,128.84,128.81,9.49994492]
[1765887619412,3.4568351,128.84,128.81,9.49994492]
[1765887619591,0.68,128.84,128.81,9.49994492]
[1765887620117,0.68,128.84,128.81,17.2632014]
[1765887620286,9.18,128.85,128.82,7.76270173]
[1765887620485,9.18,128.85,128.82,8.45270173]
[1765887621304,8.5,128.84,128.82,8.45270173]
[1765887621713,11.2768351,128.84,128.8,9.49994492]
[1765887621885,11.9568351,128.84,128.81,0.69]
[1765887622087,8.5,128.84,128.81,0.69]
[1765887622292,9.18,128.84,128.81,0.69]
[1765887622696,9.18,128.84,128.81,3.4668351]
[1765887623008,9.18,128.84,128.81,0.69]
[1765887623513,9.18,128.84,128.81,8.4532494]
[1765887625595,3.4568351,128.83,128.8,8.80994492]
[1765887625798,0.68,128.82,128.8,8.80994492]
[1765887625997,8.5,128.81,128.8,8.80994492]
[1765887626204,0.68,128.8,128.75,7.76653176]
[1765887626418,0.68,128.77,128.74,0.69]
[1765887626613,15.8239263,128.82,128.72,8.45879958]
[1765887626614,11.9568351,128.76,128.72,8.45879958]
[1765887626924,3.4568351,128.75,128.71,0.69]
[1765887627119,11.2768351,128.76,128.72,0.69]
[1765887627284,2.7768351,128.77,128.73,8.80994492]
[1765887627594,8.5,128.77,128.75,9.49994492]
[1765887627799,8.5,128.77,128.75,17.26685148]
[1765887628720,0.68,128.78,128.75,17.26685148]
[1765887629014,8.5,128.77,128.75,17.26685148]
[1765887630095,8.5,128.77,128.75,9.49994492]
[1765887631291,0.68,128.78,128.75,9.49994492]
[1765887631486,8.5,128.77,128.75,9.49994492]
[1765887631718,0.68,128.78,128.75,9.49994492]
[1765887632017,8.5,128.77,128.75,9.49994492]
[1765887633692,8.5,128.77,128.75,8.80994492]
[1765887634094,9.19,128.77,128.75,8.80994492]
[1765887634803,3.4668351,128.76,128.73,8.80994492]
[1765887635110,3.4668351,128.74,128.71,0.68]
[1765887635419,8.52,128.73,128.72,8.80994492]
[1765887639713,3.4668351,128.77,128.74,9.48994492]
[1765887639913,8.52,128.76,128.74,8.80994492]
[1765887640235,8.52,128.76,128.74,0.68]
[1765887640824,8.52,128.75,128.74,0.68]
[1765887641021,2.7768351,128.79,128.76,9.48994492]
[1765887641223,8.52,128.78,128.76,8.80994492]
[1765887642011,9.21,128.78,128.76,8.80994492]
[1765887642731,0.69,128.79,128.76,9.48994492]
[1765887642901,8.52,128.78,128.76,20.03314832]
[1765887643108,8.52,128.78,128.76,81.93314832]
[1765887643306,8.52,128.78,128.76,79.15631322]
[1765887643806,0.69,128.84,128.8,8.80994492]
[1765887644007,0.69,128.82,128.8,8.80994492]
[1765887644211,0.69,128.82,128.81,8.80994492]
[1765887644406,3.4668351,128.82,128.81,8.80994492]
[1765887644719,0.69,128.81,128.78,8.80994492]
[1765887644920,11.9868351,128.8,128.78,8.80994492]
[1765887645311,9.21,128.8,128.78,8.80994492]
[1765887647107,0.69,128.8,128.78,8.80994492]
[1765887647313,8.52,128.79,128.78,8.80994492]
[1765887647738,7.76335078,128.82,128.8,8.80994492]
[1765887648035,8.52,128.81,128.8,8.80994492]
[1765887649635,16.2833724,128.81,128.8,8.80994492]
[1765887649934,16.9733724,128.81,128.78,9.48994492]
[1765887650132,9.21,128.81,128.78,17.25510368]
[1765887650539,8.52,128.81,128.78,16.57510368]
[1765887650741,8.52,128.81,128.8,8.80994492]
[1765887651615,0.69,128.8,128.78,8.80994492]
[1765887652840,0.69,128.8,128.78,16.57511452]
[1765887653343,16.9733724,128.81,128.78,16.57511452]
[1765887654417,8.4533724,128.81,128.78,16.57511452]
[1765887654618,8.52,128.8,128.78,8.80994492]
[1765887654842,9.21,128.8,128.78,8.80994492]
[1765887656340,16.97403719,128.8,128.78,8.80994492]
[1765887656656,7.76457799,128.79,128.75,66.92614505]
[1765887656865,0.69,128.78,128.76,8.80994492]
[1765887657027,8.52,128.77,128.76,8.80994492]
[1765887659994,8.52,128.77,128.76,9.48994492]
[1765887660159,8.52,128.77,128.76,21.60247704]
[1765887660357,7.76416839,128.8,128.76,21.60247704]
[1765887660577,9.21,128.79,128.76,21.60247704]
[1765887660779,0.69,128.79,128.76,21.60247704]
[1765887661086,8.52,128.78,128.76,21.60247704]
[1765887661682,0.69,128.79,128.76,83.50247704]
[1765887661863,8.52,128.78,128.76,79.15633199]
[1765887664398,8.52,128.78,128.76,71.38994492]
[1765887665188,8.52,128.77,128.76,71.38994492]
[1765887666192,8.52,128.77,128.76,70.70994492]
[1765887666387,9.21,128.77,128.76,70.70994492]
[1765887666595,0.69,128.76,128.75,8.80994492]
[1765887666759,0.69,128.75,128.73,8.80994492]
[1765887666963,8.52,128.74,128.73,8.80994492]
[1765887667180,8.52,128.74,128.73,9.47994492]
[1765887667586,8.52,128.74,128.73,17.24814192]
[1765887668183,8.52,128.74,128.73,21.59428697]
[1765887668592,16.97759359,128.74,128.73,8.80994492]
[1765887668796,0.69,128.73,128.7,8.80994492]
[1765887669097,0.69,128.73,128.7,17.24989379]
[1765887669321,0.69,128.73,128.7,21.59603884]
[1765887669827,7.76662031,128.76,128.73,0.67]
[1765887670015,8.52,128.75,128.74,13.82608997]
[1765887670192,8.52,128.76,128.75,9.47994492]
[1765887670387,8.52,128.76,128.75,8.80994492]
[1765887670588,8.45638707,128.76,128.75,8.80994492]
[1765887670796,16.97638707,128.76,128.75,8.80994492]
[1765887672386,21.32253212,128.76,128.75,8.80994492]
[1765887673209,0.69,128.75,128.71,8.80994492]
[1765887673415,5.03614505,128.74,128.71,8.80994492]
[1765887673595,8.52,128.73,128.71,8.80994492]
[1765887673927,0.69,128.72,128.69,17.2505303]
[1765887674326,0.69,128.72,128.69,9.47994492]
[1765887674915,8.52,128.73,128.71,8.80994492]
[1765887675103,16.28826457,128.73,128.7,9.47994492]
[1765887675301,16.97826457,128.73,128.7,9.47994492]
[1765887675503,12.11388641,128.74,128.7,8.80994492]
[1765887675734,8.52,128.75,128.74,8.80994492]
[1765887676426,8.52,128.75,128.72,5.01614505]
[1765887676612,0.69,128.74,128.72,0.67]
[1765887677525,8.45786842,128.74,128.72,0.67]
[1765887677735,12.80401347,128.74,128.72,0.67]
[1765887678109,12.80968808,128.74,128.72,0.67]
[1765887679936,12.11968808,128.74,128.72,0.67]
[1765887680141,5.04181966,128.73,128.72,9.47994492]
[1765887680523,0.69,128.73,128.72,9.47994492]
[1765887680723,5.04181966,128.73,128.72,8.80994492]
[1765887681307,8.458197,128.73,128.72,8.80994492]
[1765887681507,12.81001666,128.73,128.72,8.80994492]
[1765887683311,8.52,128.76,128.75,8.80994492]
[1765887687346,16.28638707,128.76,128.75,8.80994492]
[1765887689544,8.52,128.76,128.75,8.80994492]
[1765887690213,16.28638707,128.76,128.75,8.80994492]
[1765887690617,16.28638707,128.76,128.74,8.80994492]
[1765887690817,16.28638707,128.76,128.74,9.47994492]
[1765887694150,21.5126414,128.78,128.75,0.69]
[1765887694329,9.22,128.77,128.75,8.80994492]
[1765887694525,0.7,128.76,128.75,8.80994492]
[1765887694854,20.63402345,128.77,128.75,8.80994492]
[1765887695045,21.33402345,128.77,128.75,8.80994492]
[1765887695660,9.22,128.77,128.75,8.80994492]
[1765887695831,21.33402345,128.77,128.75,8.80994492]
[1765887696228,7.76638707,128.76,128.75,8.80994492]
[1765887697258,7.76638707,128.76,128.74,0.69]
[1765887697441,8.52,128.75,128.74,0.69]
[1765887699235,8.46480318,128.79,128.76,0.69]
[1765887699433,8.52,128.78,128.76,0.69]
[1765887701442,8.52,128.78,128.76,7.76637317]
[1765887701650,8.52,128.78,128.77,9.49994492]
[1765887701967,8.52,128.78,128.77,8.80994492]
[1765887703166,16.28518092,128.78,128.77,8.80994492]
[1765887703372,29.09920437,128.78,128.77,8.80994492]
[1765887703736,16.98518092,128.78,128.77,8.80994492]
[1765887703936,29.09920437,128.78,128.77,8.80994492]
[1765887705362,21.33495151,128.78,128.77,8.80994492]
[1765887705566,0.7,128.77,128.72,9.49994492]
[1765887705751,0.7,128.75,128.72,9.49994492]
[1765887705946,8.52,128.74,128.72,9.49994492]
[1765887706738,8.52,128.74,128.73,9.49994492]
[1765887706940,0.7,128.77,128.73,9.49994492]
[1765887706941,0.7,128.79,128.76,8.80994492]
[1765887707150,13.56977059,128.78,128.76,8.80994492]
[1765887707469,13.56977059,128.78,128.75,8.80994492]
[1765887707645,0.7,128.77,128.75,8.80994492]
[1765887707988,8.52,128.76,128.75,8.80994492]